{"text_format":"1","workbook":"xlsx","n_sheets":3,"sheets":["Реестр","Основные параметры","ШАБЛОН"],"not_rendered":{"charts":0,"images":0,"macros":1,"external_links":1,"defined_names":0,"comments":0,"pivot_tables":0},"unopened":[],"bounds":{"document_bytes":16777216,"sheet_cells":100000,"rows_first":2000,"rows_last":500,"rows_between":2000,"halvings":0,"cell_chars":16384,"cell_head_chars":4096},"cells_cut":0,"cells_raw":0,"read":"whole","date_system":"1900"}

{"sheet":"Реестр","index":0,"n_rows":0,"n_cols":0,"rows_kept":0,"cut":false,"hidden":false,"merged":[]}

{"sheet":"Основные параметры","index":1,"n_rows":120,"n_cols":14,"rows_kept":120,"cut":false,"hidden":false,"merged":[[16,0,16,10],[17,0,17,10],[18,0,18,10],[12,0,12,13],[13,0,13,13],[14,0,14,13],[15,0,15,10],[6,0,6,13],[7,0,7,13],[8,0,8,13],[9,0,9,13],[10,0,10,13],[11,0,11,13],[0,0,0,13],[1,0,1,13],[2,0,2,13],[3,0,3,13],[4,0,4,13],[5,0,5,13]]}
["Представитель застройщика или заказчика по вопросам СК (Должность, Фамилия. И.О., приказ)"]
["Инженер СК"]
["Представитель лица осуществляющего строительство (Должность, Фамилия. И.О., приказ)"]
["Начальник участка"]
["Представитель лица осуществляющего строительство по вопросам СК (Должность, Фамилия. И.О., приказ)"]
["Инженер СК"]
["Представитель лица осуществляющего подготовку проектной документации (Должность, Фамилия. И.О., приказ)"]
["вед. Инженер"]
["Представитель лица осуществляющего строительство, выполневшее работы (Должность, Фамилия. И.О., приказ)"]
["производитель работ"]
["Иные представители лиц (Должность, Фамилия. И.О., приказ)"]
["начальник охраны"]
["Иные представители лиц (Должность, Фамилия. И.О., приказ)"]
["еще какой то хрен"]
["Основные сведения о предъявляемых работах"]
["Объект капитального строительства",null,null,null,null,null,null,null,null,null,null,"№ Договора, заявки","Дата заключения","Информация о проектной документации"]
[null,null,null,null,null,null,null,null,null,null,null,"АР"]
[]
[]
["№ п/п","№ акта","Дата составления акта","Предъявляемая работа","Следующая работа","Примененные материалы","Приложения"," исполнительные геодезические схемы положения конструкций ","б) результаты экспертиз, обследований, лабораторных и иных испытаний выполненных работ","6. Проведены необходимые испытания и опробования","Предъявленные конструкции выполнены  в соответствии с техническими регламентами, иными ","Дата начала работ","Дата окончания работ","Информация о проектной документации"]
[1,{"$f":"IF(ISBLANK(D21),\" \",CONCATENATE($L$17,\"-\",A21))","v":"АР-1"},{"$f":"IF(ISBLANK(M21),\" \",M21)","v":"2017-03-22"},"прол","роопнп",null,null,null,null,null,null,"2017-03-21","2017-03-22"]
[2,{"$f":"IF(ISBLANK(D22),\" \",CONCATENATE($L$17,\"-\",A22))","v":"АР-2"},{"$f":"IF(ISBLANK(M22),\" \",M22)","v":"2017-03-22"},"прол","роопнп",null,null,null,null,null,null,"2017-03-21","2017-03-22"]
[3,{"$f":"IF(ISBLANK(D23),\" \",CONCATENATE($L$9,\"-\",A23))","v":" "}," "]
[4," "," "]
[5," "," "]
[6," "," "]
[7," "," "]
[8," "," "]
[9," "," "]
[10," "," "]
[11," "," "]
[12," "," "]
[13," "," "]
[14," "," "]
[15," "," "]
[16," "," "]
[17," "," "]
[18," "," "]
[19," "," "]
[20," "," "]
[21," "," "]
[22," "," "]
[23," "," "]
[24," "," "]
[25," "," "]
[26," "," "]
[27," "," "]
[28," "," "]
[29," "," "]
[30," "," "]
[31," "," "]
[32," "," "]
[33," "," "]
[34," "," "]
[35," "," "]
[36," "," "]
[37," "," "]
[38," "," "]
[39," "," "]
[40," "," "]
[41," "," "]
[42," "," "]
[43," "," "]
[44," "," "]
[45," "," "]
[46," "," "]
[47," "," "]
[48," "," "]
[49," "," "]
[50," "," "]
[51," "," "]
[52," "," "]
[53," "," "]
[54," "," "]
[55," "," "]
[56," "," "]
[57," "," "]
[58," "," "]
[59," "," "]
[60," "," "]
[61," "," "]
[62," "," "]
[63," "," "]
[64," "," "]
[65," "," "]
[66,{"$f":"IF(ISBLANK(D86),\" \",CONCATENATE($L$9,\"-\",A86))","v":" "},{"$f":"IF(ISBLANK(M86),\" \",M86)","v":" "}]
[67," "," "]
[68," "," "]
[69," "," "]
[70," "," "]
[71," "," "]
[72," "," "]
[73," "," "]
[74," "," "]
[75," "," "]
[76," "," "]
[77," "," "]
[78," "," "]
[79," "," "]
[80," "," "]
[81," "," "]
[82," "," "]
[83," "," "]
[84," "," "]
[85," "," "]
[86," "," "]
[87," "," "]
[88," "," "]
[89," "," "]
[90," "," "]
[91," "," "]
[92," "," "]
[93," "," "]
[94," "," "]
[95," "," "]
[96," "," "]
[97," "," "]
[98," "," "]
[99," "," "]
[100," "," "]

{"sheet":"ШАБЛОН","index":2,"n_rows":138,"n_cols":14,"rows_kept":138,"cut":false,"hidden":false,"merged":[[136,0,136,18],[137,0,137,18],[135,0,135,18],[39,14,39,16],[46,0,46,18],[63,0,63,18],[88,3,88,18],[89,0,89,18],[94,8,94,11],[95,8,95,11],[97,0,97,10],[129,0,129,18],[130,0,130,18],[131,0,131,18],[132,0,132,18],[133,0,133,18],[134,5,134,18],[122,10,122,18],[123,0,123,18],[124,0,124,18],[126,0,126,18],[127,0,127,18],[128,0,128,18],[116,0,116,18],[117,0,117,18],[118,0,118,18],[119,8,119,18],[120,0,120,18],[121,0,121,18],[108,0,108,18],[109,0,109,18],[110,5,110,18],[111,3,111,4],[114,0,114,18],[115,0,115,18],[102,11,102,18],[103,0,103,18],[104,0,104,18],[105,0,105,18],[106,0,106,18],[107,0,107,10],[107,11,107,18],[96,0,96,18],[98,0,98,18],[99,0,99,18],[100,0,100,18],[101,10,101,18],[97,11,97,18],[92,0,92,18],[93,0,93,18],[94,13,94,14],[95,13,95,14],[80,0,80,18],[81,0,81,18],[85,0,85,18],[86,0,86,18],[90,0,90,18],[91,10,91,18],[74,0,74,18],[75,0,75,9],[75,10,75,18],[76,0,76,18],[77,0,77,18],[79,0,79,18],[69,0,69,18],[70,0,70,18],[71,0,71,11],[71,12,71,18],[72,0,72,18],[73,0,73,18],[64,0,64,18],[65,0,65,12],[65,13,65,18],[66,0,66,18],[67,0,67,8],[68,0,68,12],[68,13,68,18],[60,0,60,12],[60,13,60,18],[61,0,61,18],[62,0,62,18],[54,0,54,18],[55,0,55,18],[56,0,56,18],[57,0,57,18],[58,0,58,18],[59,0,59,18],[47,0,47,18],[48,16,48,18],[49,0,49,18],[50,0,50,18],[52,0,52,18],[53,0,53,18],[41,0,41,17],[42,0,42,16],[43,0,43,18],[44,0,44,18],[45,8,45,18],[34,0,34,18],[35,0,35,18],[36,0,36,18],[37,0,37,18],[38,0,38,18],[39,1,39,5],[28,0,28,18],[29,0,29,18],[30,0,30,18],[31,0,31,18],[32,0,32,18],[33,0,33,18],[22,0,22,16],[23,0,23,18],[24,0,24,18],[25,0,25,18],[26,0,26,18],[27,0,27,18],[17,0,17,18],[18,0,18,18],[19,0,19,18],[20,0,20,16],[21,0,21,11],[21,12,21,18],[11,0,11,16],[12,8,12,18],[13,0,13,18],[14,0,14,18],[15,0,15,18],[16,0,16,16],[5,0,5,18],[6,0,6,18],[7,0,7,18],[8,0,8,18],[9,0,9,18],[10,0,10,18],[0,10,0,18],[1,0,1,6],[1,7,1,18],[2,0,2,18],[3,0,3,18],[4,7,4,18]]}
[]
["Объект капитального строительства",null,null,null,null,null,null,"10-ТПР-007-00016  Строительство пожарного депо на четыре выезда "]
["со складом под пенообразователь на ЛПДС \"Лазарево\", КРНУ, ОАО \"СЗМН\""]
["(наименование, почтовый или строительный адрес объекта капитального строительства)"]
["Застройщик или технический заказчик",null,null,null,null,null,null,"АО \"Транснефть-Прикамье\""]
["(наименование, ОГРН, ИНН, номер и дата выдачи свидетельства о допуске к видам работ по строительству, реконструкции,"]
["ОГРН 1021601763820, ИНН 1645000340 "]
[" капитальному ремонту объектов капитального строительства, которые оказывают влияние на безопасность объектов, "]
["Свидетельство СРО №0057-2015-1645000340-06 от 17.04.2015г. СРО НП \"Союзнефтегазпроект\""]
["с указанием саморегулируемой организации, его выдавшей, почтовые реквизиты, тел./факс – для  юридических лиц и индивидуальных "]
[" 420061, г.Казань, ул. Ершова, д.26А тел. (843) 279-04-95"]
["предпринимателей; фамилия, имя, отчество, паспортные данные, место проживания, телефон/факс - для физических лиц)"]
["Лицо, осуществляющее строительство",null,null,null,null,null,null,null,"ООО \"КОМИС\""]
["(наименование, ОГРН, ИНН, номер и дата выдачи свидетельства о допуске к видам работ по строительству, реконструкции,"]
["ОГРН 1021200773770, ИНН 1215059180, Свид. Серия 12 №000430382 от 18.12.2002г. "]
["Свидетельство СРО №0097-2015-1215059180-06 от 27.11.2015г.  СРО НП \"Союзнефтегазпроект\". "]
[" капитальному ремонту объектов капитального строительства, которые оказывают влияние на безопасность объектов, "]
["420029, РТ, г.Казань ул. Журналистов, 6"]
["с указанием саморегулируемой организации, его выдавшей, почтовые реквизиты, тел./факс – для  юридических лиц и индивидуальных "]
["тел. +7 (843)276-94-76, +7 (843) 277-94-94, +7 (843) 277-94-77"]
["предпринимателей; фамилия, имя, отчество, паспортные данные, место проживания, телефон/факс - для физических лиц)"]
["Лицо, осуществляющее подготовку проектной документации",null,null,null,null,null,null,null,null,null,null,null,"ООО \"УралСофтПроект\""]
["(наименование, ОГРН, ИНН, номер и дата выдачи свидетельства о допуске к видам работ по строительству, реконструкции,"]
["ОГРН 1040204621797, ИНН 0278106345. Свидетельство СРО № 0017-2015-0278106345-11 от 30.10.2015г., "]
["СРО НП \"Союзнефтегазпроект\""]
[" капитальному ремонту объектов капитального строительства, которые оказывают влияние на безопасность объектов, "]
["450097, Россия, Республика Башкортостан, г.Уфа, ул. Бульвар Х.Давлетшиной 11а, оф.11, а/я90"]
["с указанием саморегулируемой организации, его выдавшей, почтовые реквизиты, тел./факс – для  юридических лиц и индивидуальных предпринимателей; фамилия, имя, отчество, паспортные данные, место проживания, телефон/факс - для физических лиц)"]
["Лицо, осуществляющее строительство, выполнившее работы, подлежащие освидетельствованию "]
["ООО \"КОМИС\""]
["(наименование, ОГРН, ИНН, номер и дата выдачи свидетельства о допуске к видам работ по строительству, реконструкции,"]
["ОГРН 1021200773770, ИНН 1215059180, Свид. Серия 12 №000430382 от 18.12.2002г. "]
["Свидетельство СРО №0097-2015-1215059180-06 от 27.11.2015г.  СРО НП \"Союзнефтегазпроект\". "]
[" капитальному ремонту объектов капитального строительства, которые оказывают влияние на безопасность объектов, "]
["420029 РТ, г.Казань ул. Журналистов, 6. тел. +7 (843)276-94-76,+7 (843)277-94-94, +7 (843)277-94-77"]
["с указанием саморегулируемой организации, его выдавшей, почтовые реквизиты, тел./факс – для  юридических лиц и индивидуальных "]
["предпринимателей; фамилия, имя, отчество, паспортные данные, место проживания, телефон/факс - для физических лиц)"]
["АКТ"]
["освидетельствования ответственных конструкции"]
["№",null,null,null,null,null,null,null,null,null,null,"\"",null,"\""]
[]
[]
["Представитель застройщика или технического заказчика по вопросам строительного контроля"]
[]
["(должность, фамилия, инициалы, реквизиты документа о представительстве)"]
["Представитель застройщика или заказчика"]
[]
["(должность, фамилия, инициалы, реквизиты документа о представительстве)"]
["Представитель лица, осуществляющего строительство"]
[]
["(должность, фамилия, инициалы, реквизиты документа о представительстве)"]
["Представитель лица, осуществляющего строительство, по вопросам строительного контроля "]
[]
["(должность, фамилия, инициалы, реквизиты документа о представительстве)"]
["Представитель лица, осуществляющего подготовку проектной документации "]
[]
["(должность, фамилия, инициалы, реквизиты документа о представительстве)"]
["Представитель лица, выполнившего работы, подлежащие освидетельствованию"]
[]
["(должность, фамилия, инициалы, реквизиты документа о представительстве)"]
["а также иные представители лиц, участвующих в освидетельствовании:"]
[]
["(должность, фамилия, инициалы, реквизиты документа о представительстве)"]
[]
["(должность, фамилия, инициалы, реквизиты документа о представительстве)"]
["произвели осмотр ответственных конструкций, выполненных",null,null,null,null,null,null,null,null,null,null,null,null,"ООО \"КОМИС\""]
["(наименование лица, осуществляющего строительство, фактически выполневшего конструкции выполнившего конструкции)"]
["и составили настоящий акт о нижеследующем:"]
["1. К освидетельствованию предъявлены следующие ответственные конструкции:"]
[]
["(перечень и краткая характеристика конструкций)"]
["2. Конструкции выполнены по проектной документации:"]
[]
["(номер, другие реквизиты чертежа, наименование проектной и/или рабочей документации,"]
["сведения о лицах, осуществляющих подготовку раздела  проектной и/или рабочей документации)"]
["3. При выполнении конструкций применены:"]
[]
["наименование строительных материалов (изделий) со ссылкой на сертификаты или другие документы, подтверждающие качество)"]
["4. Освидетельствованы  скрытые работы, которые оказывают влияние на безопасность конструкций:"]
[]
["(исполнительные схемы и чертежи, результаты экспертиз, обследований, лабораторных и иных"]
["испытаний выполненных работ, проведенных в процессе строительного контроля.)"]
["5. Предъявлены документы, подтверждающие соответствие конструкций предъявляемым к ним "]
["требованиям, в том числе: "]
["а) исполнительные геодезические схемы положения конструкций "]
[]
["(наименование документа, дата, номер, дугие реквизиты)"]
["б) результаты экспертиз, обследований, лабораторных и иных испытаний выполненных работ, проведенных"]
["испытаний : "]
[]
["(наименование документа, дата, номер, дугие реквизиты)"]
["6. Проведены необходимые испытания и опробования"]
[]
["(наименование документа, дата, номер, дугие реквизиты)"]
["7. Даты: начала работ",null,null,null,null,"\"",null,"\""]
[null,"окончания работ",null,null,null,"\"",null,"\""]
["8. Предъявленные конструкции выполнены  в соответствии с техническими регламентами, иными "]
["нормативными правовыми актами и проектной документацией"]
["(указываются наименование, статьи (пункты) технического регламента, иных нормативных правовых актов,"]
[]
["разделы проектной и/или рабочей документации)"]
["9. На основании изложенного:",null,null,null,null,null,null,null,null,null,"     "]
["а) разрешается использование конструкций по назначению"]
["или разрешается использование конструкций по назначению с нагружением "]
["в размере    100   % проектной нагрузки;"]
["или разрешается полное нагружение при выполненении следующих условий:"]
[]
["б) разрешается производство последующих работ:"]
[]
["(наименование работ и конструкций)"]
["Дополнительные сведения ",null,null,null,null,"н/п"]
["Акт составлен в",null,null,2,null,"экземплярах."]
[]
["Приложения:"]
[]
[]
["Представитель застройщика или технического заказчика по вопросам строительного контроля"]
[{"$f":"A44","v":0}]
["(должность, фамилия, инициалы, подпись)"]
["Представитель застройщика или заказчика"]
[{"$f":"A47","v":0}]
["(должность, фамилия, инициалы, подпись)"]
["Представитель лица, осуществляющего строительство"]
[{"$f":"A50","v":0}]
["(должность, фамилия, инициалы, подпись)"]
["Представитель лица, осуществляющего строительство, по вопросам строительного контроля"]
[{"$f":"A53","v":0}]
["(должность, фамилия, инициалы, подпись)"]
["Представитель лица, осуществляющего подготовку проектной документации"]
[{"$f":"A56","v":0}]
["(должность, фамилия, инициалы, подпись)"]
["Представитель лица, выполнившего работы, подлежащие освидетельствованию"]
[{"$f":"A59","v":0}]
["(должность, фамилия, инициалы, подпись)"]
["Представители иных лиц:",null,null,null,null,{"$f":"A62","v":0}]
["(должность, фамилия, инициалы, подпись)"]
[{"$f":"A64","v":0}]
["(должность, фамилия, инициалы, подпись)"]